fUST/lending_fUST_20250525
["ID","MTS","AMOUNT","RATE_DAILY","PERIOD"]
[362224297,1748112645350,-151.0,0.00024888,7]
[362224299,1748112645359,-151.0,0.00024888,7]
[362224301,1748112645369,-151.0,0.00024888,7]
[362224303,1748112645378,-245.775884,0.00024888,7]
[362224305,1748112645387,-245.775884,0.00024888,7]
[362224307,1748112645397,-200.986536,0.00024888,7]
[362224309,1748112645406,-200.986536,0.00024888,7]
[362224311,1748112645416,-152.333852,0.00024888,7]
[362224313,1748112645425,-1064.147881,0.00024888,2]
[362224315,1748112645435,-1064.147881,0.00024888,2]
[362224317,1748112645444,-800.0,0.00024896,2]
[362224319,1748112645453,-161.25016391,0.00024898,2]
[362224321,1748112645463,-160.0,0.00024898,2]
[362224323,1748112645472,-183941.3047056,0.00024899,2]
[362224325,1748112645481,-151.0,0.00024899,7]
[362224327,1748112645491,-151.0,0.00024899,7]
[362224329,1748112645500,-151.0,0.00024899,7]
[362224331,1748112645510,-151.0,0.00024899,7]
[362224348,1748112645664,-245.775884,0.00024899,7]
[362224350,1748112645677,-245.775884,0.00024899,7]
[362224352,1748112645687,-200.986536,0.00024899,7]
[362224354,1748112645696,-200.986536,0.00024899,7]
[362224356,1748112645706,-1064.147881,0.00024899,2]
[362224358,1748112645715,-1064.147881,0.00024899,2]
[362224360,1748112645725,-272.6,0.000249,2]
[362224363,1748112645735,-494.93575279,0.000249,2]
[362224365,1748112645744,-10197.77,0.000249,7]
[362224367,1748112645753,-16911.76628527,0.000249,3]
[362224369,1748112645763,-151.0,0.000249,7]
[362224371,1748112645772,-240.62926,0.000249,7]
[362224373,1748112645781,-579836.441313,0.000249,2]
[362224375,1748112645790,-151.0,0.000249,7]
[362224376,1748112645799,-151.0,0.000249,7]
[362224378,1748112645809,-245.775884,0.000249,7]
[362224381,1748112645818,-245.775884,0.000249,7]
[362224383,1748112645827,-200.986536,0.000249,7]
[362224385,1748112645836,-200.986536,0.000249,7]
[362224387,1748112645846,-1064.147881,0.000249,2]
[362224389,1748112645855,-1064.147881,0.000249,2]
[362224391,1748112645864,-229.12393663,0.000249,3]
[362224393,1748112645873,-200.0,0.00024914,120]
[362224395,1748112645882,-430.0,0.00024931,2]
[362224397,1748112645891,-430.0,0.00024931,2]
[362224399,1748112645901,-430.0,0.00024931,2]
[362224401,1748112645910,-430.0,0.00024931,2]
[362224402,1748112645919,-2148.94,0.00024931,2]
[362224405,1748112645928,-752.46,0.00024931,2]
[362224406,1748112645938,-1547.16,0.00024931,2]
[362224408,1748112645947,-430.0,0.00024931,2]
[362224411,1748112645956,-558.08,0.00024931,2]
[362224412,1748112645965,-475.35,0.00024931,2]
[362224414,1748112645974,-430.0,0.00024931,2]
[362224417,1748112645984,-430.0,0.00024931,2]
[362224419,1748112645993,-430.0,0.00024931,2]
[362224421,1748112646002,-430.0,0.00024931,2]
[362224422,1748112646011,-430.0,0.00024931,2]
[362224425,1748112646021,-636.79,0.00024931,2]
[362224427,1748112646030,-443.77,0.00024931,2]
[362224429,1748112646040,-430.0,0.00024931,2]
[362224431,1748112646048,-617.24,0.00024931,2]
[362224433,1748112646058,-1286.53,0.00024931,2]
[362224434,1748112646067,-817.44,0.00024931,2]
[362224436,1748112646077,-430.0,0.00024931,2]
[362224438,1748112646086,-764.4,0.00024931,2]
[362224440,1748112646095,-430.0,0.00024931,2]
[362224443,1748112646104,-3104.78,0.00024931,2]
[362224445,1748112646114,-1170.54,0.00024931,2]
[362224447,1748112646123,-880.71,0.00024931,2]
[362224448,1748112646132,-500.0,0.00024973,2]
[362224450,1748112646142,-500.0,0.00024973,2]
[362224453,1748112646151,-500.22688545,0.00024973,2]
[362224455,1748112646161,-1000.0,0.0002498,5]
[362224457,1748112646172,-3003.68749246,0.00024987,2]
[362224459,1748112646181,-169530.35524903,0.00025,30]
[362224461,1748112646191,-3135756.21012176,0.00025,30]
[362224463,1748112646200,-2000.0,0.00025,2]
[362224465,1748112646209,-5035.0,0.00025,2]
[362224467,1748112646219,-1954.27889467,0.00025,15]
[362224469,1748112646228,-614223.73620702,0.00025,30]
[362224471,1748112646237,-104097.75907526,0.00025,30]
[362224473,1748112646247,-19170.53658747,0.00025,2]
[362224475,1748112646256,-1059.71902838,0.00025,2]
[362224477,1748112646266,-2609.69437601,0.00025,2]
[362224479,1748112646275,-207.01797922,0.00025,2]
[362224481,1748112646285,-10364.0,0.00025,2]
[362224483,1748112646295,-155.0,0.00025,2]
[362224485,1748112646304,-167712.72653472,0.00025,30]
[362224487,1748112646313,-125432.1627284,0.00025,120]
[362224489,1748112646323,-13679.23945775,0.00025,2]
[362224491,1748112646333,-12723.64165706,0.00025,2]
[362224493,1748112646342,-213684.94767848,0.00025,30]
[362228065,1748112882666,168.451949,0.00013699,2]
[362228111,1748113831955,-2654.65212556,0.000189,2]
[362228112,1748113831965,-300.0,0.00019829,2]
[362228113,1748113831974,-300.0,0.00019829,2]
[362228114,1748113831986,-5000.0,0.0001983,2]
[362228115,1748113831996,-5000.0,0.0001983,2]
[362228116,1748113832005,-5000.0,0.0001983,2]
[362228117,1748113832015,-5000.0,0.0001983,2]
[362228118,1748113832024,-781.3407655,0.00020143,2]
[362228119,1748113832034,-309.6372194,0.00020594,2]
[362228120,1748113832043,-8553.8272476,0.00020927,2]
[362228121,1748113832053,-1000.0,0.00020968,2]
[362228122,1748113832062,-160.0,0.0002099,2]
[362228123,1748113832072,-422.929492,0.0002099,2]
[362228124,1748113832082,-220.998646,0.00021422,2]
[362228125,1748113832092,-299.609,0.00021549,2]
[362228126,1748113832101,-25000.0,0.0002155,2]
[362228127,1748113832111,-420.0,0.00021595,2]
[362228128,1748113832120,-420.0,0.00021595,2]
[362228129,1748113832131,-976.06862509,0.00021817,2]
[362228130,1748113832140,-279.8368894,0.00021817,2]
[362228131,1748113832149,-229.12393663,0.00021901,2]
[362228132,1748113832159,-430.0,0.00021917,2]
[362228133,1748113832168,-430.0,0.00021917,2]
[362228134,1748113832177,-430.0,0.00021917,2]
[362228135,1748113832190,-430.0,0.00021917,2]
[362228136,1748113832199,-430.0,0.00021917,2]
[362228137,1748113832209,-430.0,0.00021917,2]
[362228138,1748113832218,-1000.0,0.00021917,2]
[362228139,1748113832346,-430.0,0.00021917,2]
[362228140,1748113832356,-420.0,0.00021917,2]
[362228141,1748113832368,-470.0,0.00021917,2]
[362228142,1748113832380,-412.60081372,0.00021917,2]
[362228143,1748113832389,-490.0,0.00021917,2]
[362228144,1748113832399,-500.0,0.00021917,2]
[362228145,1748113832409,-430.0,0.00021917,2]
[362228146,1748113832419,-430.0,0.00021917,2]
[362228147,1748113832428,-430.0,0.00021917,2]
[362228148,1748113832438,-430.0,0.00021917,2]
[362228149,1748113832448,-450.0,0.00021917,2]
[362228150,1748113832458,-430.0,0.00021917,2]
[362228151,1748113832469,-430.0,0.00021917,2]
[362228152,1748113832481,-430.0,0.00021917,2]
[362228153,1748113832491,-430.0,0.00021917,2]
[362228154,1748113832500,-430.0,0.00021917,2]
[362228155,1748113832510,-538.82,0.00021917,2]
[362228156,1748113832519,-430.0,0.00021917,2]
[362228157,1748113832528,-430.0,0.00021917,2]
[362228158,1748113832537,-430.0,0.00021917,2]
[362228159,1748113832546,-430.0,0.00021917,2]
[362228160,1748113832555,-450.0,0.00021917,2]
[362228161,1748113832565,-450.0,0.00021917,2]
[362228162,1748113832574,-470.0,0.00021917,2]
[362228163,1748113832583,-450.0,0.00021917,2]
[362228164,1748113832592,-450.0,0.00021917,2]
[362228165,1748113832601,-430.0,0.00021917,2]
[362228166,1748113832610,-430.0,0.00021917,2]
[362228167,1748113832620,-186.68508386,0.00021917,2]
[362228168,1748113832630,-450.0,0.00021917,2]
[362228169,1748113832641,-450.0,0.00021917,2]
[362228170,1748113832652,-450.0,0.00021917,2]
[362228171,1748113832662,-450.0,0.00021917,2]
[362228172,1748113832674,-450.0,0.00021917,2]
[362228173,1748113832684,-288.26323732,0.00021917,2]
[362228174,1748113832694,-430.0,0.00021917,2]
[362228175,1748113832703,-450.0,0.00021917,2]
[362228176,1748113832712,-450.0,0.00021917,2]
[362228177,1748113832722,-430.0,0.00021917,2]
[362228178,1748113832733,-430.0,0.00021917,2]
[362228179,1748113832742,-450.0,0.00021917,2]
[362228180,1748113832751,-430.0,0.00021917,2]
[362228181,1748113832761,-430.0,0.00021917,2]
[362228182,1748113832771,-450.0,0.00021917,2]
[362228183,1748113832781,-430.0,0.00021917,2]
[362228184,1748113832790,-450.0,0.00021917,2]
[362228185,1748113832801,-450.0,0.00021917,2]
[362228186,1748113832810,-430.0,0.00021917,2]
[362228187,1748113832820,-430.0,0.00021917,2]
[362228188,1748113832829,-430.0,0.00021917,2]
[362228189,1748113832840,-450.0,0.00021917,2]
[362228190,1748113832851,-450.0,0.00021917,2]
[362228191,1748113832862,-430.0,0.00021917,2]
[362228192,1748113832873,-430.0,0.00021917,2]
[362228193,1748113832884,-450.0,0.00021917,2]
[362228194,1748113832897,-430.0,0.00021917,2]
[362228195,1748113832906,-430.0,0.00021917,2]
[362228196,1748113832916,-363.43963406,0.00021917,2]
[362228197,1748113832926,-430.0,0.00021917,2]
[362228198,1748113832935,-450.0,0.00021917,2]
[362228199,1748113832945,-450.0,0.00021917,2]
[362228200,1748113832955,-430.0,0.00021917,2]
[362228201,1748113832964,-430.0,0.00021917,2]
[362228202,1748113832975,-438.63360321,0.00021917,2]
[362228203,1748113832986,-450.0,0.00021917,2]
[362228204,1748113832995,-450.0,0.00021917,2]
[362228205,1748113833004,-430.0,0.00021917,2]
[362228206,1748113833014,-400.0,0.00021917,2]
[362228207,1748113833024,-430.0,0.00021917,2]
[362228208,1748113833033,-470.0,0.00021917,2]
[362228209,1748113833043,-430.0,0.00021917,2]
[362228210,1748113833052,-450.0,0.00021917,2]
[362228211,1748113833063,-430.0,0.00021917,2]
[362228212,1748113833072,-430.0,0.00021917,2]
[362228213,1748113833082,-430.0,0.00021917,2]
[362228214,1748113833091,-430.0,0.00021917,2]
[362228215,1748113833101,-450.0,0.00021917,2]
[362228216,1748113833111,-430.0,0.00021917,2]
[362228217,1748113833120,-430.0,0.00021917,2]
[362228218,1748113833130,-430.0,0.00021917,2]
[362228219,1748113833139,-430.0,0.00021917,2]
[362228220,1748113833149,-430.0,0.00021917,2]
[362228221,1748113833159,-430.0,0.00021917,2]
[362228222,1748113833168,-490.0,0.00021917,2]
[362228223,1748113833178,-430.0,0.00021917,2]
[362228224,1748113833188,-430.0,0.00021917,2]
[362228225,1748113833197,-430.0,0.00021917,2]
[362228226,1748113833207,-300.0,0.00021917,2]
[362228227,1748113833217,-430.0,0.00021917,2]
[362228228,1748113833227,-400.03659295,0.00021917,2]
[362228229,1748113833237,-430.0,0.00021917,2]
[362228230,1748113833246,-430.0,0.00021917,2]
[362228231,1748113833255,-450.0,0.00021917,2]
[362228232,1748113833265,-414.96500573,0.00021917,2]
[362228233,1748113833274,-430.0,0.00021917,2]
[362228234,1748113833284,-450.0,0.00021917,2]
[362228235,1748113833293,-450.0,0.00021917,2]
[362228236,1748113833303,-450.0,0.00021917,2]
[362228237,1748113833312,-419.1014355,0.00021917,2]
[362228238,1748113833322,-450.0,0.00021917,2]
[362228239,1748113833331,-250.0,0.00021917,2]
[362228240,1748113833341,-400.0,0.00021917,2]
[362228241,1748113833351,-450.0,0.00021917,2]
[362228242,1748113833361,-450.0,0.00021917,2]
[362228243,1748113833370,-395.63942206,0.00021917,2]
[362228244,1748113833381,-430.0,0.00021917,2]
[362228245,1748113833391,-450.0,0.00021917,2]
[362228246,1748113833401,-400.0,0.00021917,2]
[362228247,1748113833412,-450.0,0.00021917,2]
[362228248,1748113833421,-430.0,0.00021917,2]
[362228249,1748113833432,-500.0,0.00021917,2]
[362228250,1748113833442,-450.0,0.00021917,2]
[362228251,1748113833452,-430.0,0.00021917,2]
[362228252,1748113833462,-430.0,0.00021917,2]
[362228253,1748113833472,-430.0,0.00021917,2]
[362228254,1748113833482,-450.0,0.00021917,2]
[362228255,1748113833492,-430.0,0.00021917,2]
[362228256,1748113833502,-450.0,0.00021917,2]
[362228257,1748113833512,-450.0,0.00021917,2]
[362228258,1748113833522,-450.0,0.00021917,2]
[362228259,1748113833532,-430.0,0.00021917,2]
[362228260,1748113833543,-430.0,0.00021917,2]
[362228261,1748113833554,-430.0,0.00021917,2]
[362228262,1748113833564,-400.0,0.00021917,2]
[362228263,1748113833574,-450.0,0.00021917,2]
[362228264,1748113833584,-450.0,0.00021917,2]
[362228265,1748113833593,-156.57142246,0.00021917,2]
[362228266,1748113833603,-450.0,0.00021917,2]
[362228267,1748113833614,-450.0,0.00021917,2]
[362228268,1748113833623,-450.0,0.00021917,2]
[362228269,1748113833634,-430.0,0.00021917,2]
[362228270,1748113833643,-430.0,0.00021917,2]
[362228271,1748113833654,-430.0,0.00021917,2]
[362228272,1748113833664,-450.0,0.00021917,2]
[362228273,1748113833674,-450.0,0.00021917,2]
[362228274,1748113833684,-450.0,0.00021917,2]
[362228275,1748113833694,-430.0,0.00021917,2]
[362228276,1748113833703,-450.0,0.00021917,2]
[362228277,1748113833714,-430.0,0.00021917,2]
[362228278,1748113833725,-450.0,0.00021917,2]
[362228279,1748113833734,-430.0,0.00021917,2]
[362228280,1748113833744,-456.53913042,0.00021917,2]
[362228281,1748113833756,-430.0,0.00021917,2]
[362228282,1748113833766,-430.0,0.00021917,2]
[362228283,1748113833777,-450.0,0.00021917,2]
[362228284,1748113833787,-450.0,0.00021917,2]
[362228285,1748113833798,-450.0,0.00021917,2]
[362228286,1748113833808,-450.0,0.00021917,2]
[362228287,1748113833818,-430.0,0.00021917,2]
[362228288,1748113833827,-430.0,0.00021917,2]
[362228289,1748113833838,-450.0,0.00021917,2]
[362228290,1748113833848,-450.0,0.00021917,2]
[362228291,1748113833860,-430.0,0.00021917,2]
[362228292,1748113833869,-450.0,0.00021917,2]
[362228293,1748113833879,-263.77,0.00021917,2]
[362228294,1748113833890,-450.0,0.00021917,2]
[362228295,1748113833900,-450.0,0.00021917,2]
[362228296,1748113833915,-323.05217977,0.00021917,2]
[362228297,1748113833925,-430.0,0.00021917,2]
[362228298,1748113833935,-450.0,0.00021917,2]
[362228299,1748113833945,-450.0,0.00021917,2]
[362228300,1748113833957,-450.0,0.00021917,2]
[362228301,1748113833967,-416.94892829,0.00021917,2]
[362228302,1748113833977,-450.0,0.00021917,2]
[362228303,1748113833987,-450.0,0.00021917,2]
[362228304,1748113833998,-550.0,0.00021917,2]
[362228305,1748113834008,-430.0,0.00021917,2]
[362228306,1748113834020,-430.0,0.00021917,2]
[362228307,1748113834030,-430.0,0.00021917,2]
[362228308,1748113834040,-430.0,0.00021917,2]
[362228309,1748113834050,-450.0,0.00021917,2]
[362228310,1748113834059,-430.0,0.00021917,2]
[362228311,1748113834068,-430.0,0.00021917,2]
[362228312,1748113834078,-430.0,0.00021917,2]
[362228313,1748113834088,-470.0,0.00021917,2]
[362228314,1748113834098,-574.61,0.00021917,2]
[362228315,1748113834107,-430.0,0.00021917,2]
[362228316,1748113834117,-450.0,0.00021917,2]
[362228317,1748113834127,-450.0,0.00021917,2]
[362228318,1748113834137,-430.0,0.00021917,2]
[362228319,1748113834147,-430.0,0.00021917,2]
[362228320,1748113834156,-450.0,0.00021917,2]
[362228321,1748113834166,-430.0,0.00021917,2]
[362228322,1748113834175,-430.0,0.00021917,2]
[362228323,1748113834186,-430.0,0.00021917,2]
[362228324,1748113834195,-450.0,0.00021917,2]
[362228325,1748113834205,-430.0,0.00021917,2]
[362228326,1748113834214,-430.0,0.00021917,2]
[362228327,1748113834224,-450.0,0.00021917,2]
[362228328,1748113834233,-450.0,0.00021917,2]
[362228329,1748113834243,-450.0,0.00021917,2]
[362228330,1748113834252,-430.0,0.00021917,2]
[362228331,1748113834261,-490.2198061,0.00021917,2]
[362228332,1748113834270,-500.0,0.00021917,2]
[362228333,1748113834279,-430.0,0.00021917,2]
[362228334,1748113834289,-450.0,0.00021917,2]
[362228335,1748113834298,-430.0,0.00021917,2]
[362228336,1748113834307,-450.0,0.00021917,2]
[362228337,1748113834317,-430.0,0.00021917,2]
[362228338,1748113834326,-450.0,0.00021917,2]
[362228339,1748113834335,-477.99,0.00021917,2]
[362228340,1748113834345,-430.0,0.00021917,2]
[362228341,1748113834354,-450.0,0.00021917,2]
[362228342,1748113834363,-450.0,0.00021917,2]
[362228343,1748113834372,-450.0,0.00021917,2]
[362228344,1748113834382,-450.0,0.00021917,2]
[362228345,1748113834391,-430.0,0.00021917,2]
[362228346,1748113834492,-430.0,0.00021917,2]
[362228347,1748113834501,-450.0,0.00021917,2]
[362228348,1748113834510,-430.0,0.00021917,2]
[362228349,1748113834519,-450.0,0.00021917,2]
[362228350,1748113834529,-430.0,0.00021917,2]
[362228351,1748113834538,-348.67,0.00021917,2]
[362228352,1748113834548,-450.0,0.00021917,2]
[362228353,1748113834557,-905.16,0.00021917,2]
[362228354,1748113834567,-450.0,0.00021917,2]
[362228355,1748113834576,-430.0,0.00021917,2]
[362228356,1748113834585,-450.0,0.00021917,2]
[362228357,1748113834595,-430.0,0.00021917,2]
[362228358,1748113834604,-430.0,0.00021917,2]
[362228359,1748113834613,-430.0,0.00021917,2]
[362228360,1748113834623,-430.0,0.00021917,2]
[362228361,1748113834633,-452.91587572,0.00021917,2]
[362228362,1748113834642,-450.0,0.00021917,2]
[362228363,1748113834652,-882.96,0.00021917,2]
[362228364,1748113834661,-450.0,0.00021917,2]
[362228365,1748113834670,-151.38596645,0.00021917,2]
[362228366,1748113834679,-617.59,0.00021917,2]
[362228367,1748113834688,-430.0,0.00021917,2]
[362228368,1748113834698,-450.0,0.00021917,2]
[362228369,1748113834707,-450.0,0.00021917,2]
[362228370,1748113834716,-450.0,0.00021917,2]
[362228371,1748113834726,-812.65,0.00021917,2]
[362228372,1748113834735,-430.0,0.00021917,2]
[362228373,1748113834745,-450.0,0.00021917,2]
[362228374,1748113834755,-450.0,0.00021917,2]
[362228375,1748113834764,-655.04,0.00021917,2]
[362228376,1748113834774,-430.0,0.00021917,2]
[362228377,1748113834784,-430.0,0.00021917,2]
[362228378,1748113834794,-510.22,0.00021917,2]
[362228379,1748113834804,-587.25,0.00021917,2]
[362228380,1748113834813,-430.0,0.00021917,2]
[362228381,1748113834823,-5414.04,0.00021917,2]
[362228382,1748113834833,-430.0,0.00021917,2]
[362228383,1748113834843,-450.0,0.00021917,2]
[362228384,1748113834852,-430.0,0.00021917,2]
[362228385,1748113834862,-450.0,0.00021917,2]
[362228386,1748113834871,-430.0,0.00021917,2]
[362228387,1748113834881,-387.6527554,0.00021917,2]
[362228388,1748113834891,-430.0,0.00021917,2]
[362228389,1748113834905,-430.0,0.00021917,2]
[362228390,1748113834914,-430.0,0.00021917,2]
[362228391,1748113834923,-430.0,0.00021917,2]
[362228392,1748113834935,-430.0,0.00021917,2]
[362228393,1748113834944,-463.08,0.00021917,2]
[362228394,1748113834953,-450.0,0.00021917,2]
[362228395,1748113834963,-1798.22,0.00021917,2]
[362228396,1748113834974,-430.0,0.00021917,2]
[362228397,1748113834983,-430.0,0.00021917,2]
[362228398,1748113834992,-430.0,0.00021917,2]
[362228399,1748113835002,-450.0,0.00021917,2]
[362228400,1748113835011,-743.54,0.00021917,2]
[362228401,1748113835020,-351.0726124,0.00021917,2]
[362228402,1748113835029,-430.0,0.00021917,2]
[362228403,1748113835039,-3605.52,0.00021917,2]
[362228404,1748113835048,-430.0,0.00021917,2]
[362228405,1748113835057,-1096.56,0.00021917,2]
[362228406,1748113835066,-430.0,0.00021917,2]
[362228407,1748113835075,-450.0,0.00021917,2]
[362228408,1748113835085,-450.0,0.00021917,2]
[362228409,1748113835094,-450.0,0.00021917,2]
[362228410,1748113835103,-450.0,0.00021917,2]
[362228411,1748113835113,-175.26726233,0.00021917,2]
[362228412,1748113835122,-430.0,0.00021917,2]
[362228413,1748113835132,-430.0,0.00021917,2]
[362228414,1748113835142,-450.0,0.00021917,2]
[362228415,1748113835152,-430.0,0.00021917,2]
[362228416,1748113835161,-450.0,0.00021917,2]
[362228417,1748113835171,-430.0,0.00021917,2]
[362228418,1748113835180,-430.0,0.00021917,2]
[362228419,1748113835190,-430.0,0.00021917,2]
[362228420,1748113835199,-430.0,0.00021917,2]
[362228421,1748113835208,-450.0,0.00021917,2]
[362228422,1748113835218,-450.0,0.00021917,2]
[362228423,1748113835228,-430.0,0.00021917,2]
[362228424,1748113835238,-484.85,0.00021917,2]
[362228425,1748113835247,-450.0,0.00021917,2]
[362228426,1748113835257,-450.0,0.00021917,2]
[362228427,1748113835266,-430.0,0.00021917,2]
[362228428,1748113835276,-1182.72,0.00021917,2]
[362228429,1748113835286,-450.0,0.00021917,2]
[362228430,1748113835295,-390.0,0.00021917,2]
[362228431,1748113835305,-430.0,0.00021917,2]
[362228432,1748113835315,-450.0,0.00021917,2]
[362228433,1748113835324,-430.0,0.00021917,2]
[362228434,1748113835334,-403.97626816,0.00021917,2]
[362228435,1748113835344,-450.0,0.00021917,2]
[362228436,1748113835353,-365.44539189,0.00021917,2]
[362228437,1748113835363,-430.0,0.00021917,2]
[362228438,1748113835373,-545.47,0.00021917,2]
[362228439,1748113835382,-450.0,0.00021917,2]
[362228440,1748113835392,-450.0,0.00021917,2]
[362228441,1748113835401,-473.39,0.00021917,2]
[362228442,1748113835411,-430.0,0.00021917,2]
[362228443,1748113835420,-1092.71,0.00021917,2]
[362228444,1748113835430,-452.78568249,0.00021917,2]
[362228445,1748113835440,-430.0,0.00021917,2]
[362228446,1748113835451,-907.75,0.00021917,2]
[362228447,1748113835460,-430.0,0.00021917,2]
[362228448,1748113835470,-430.0,0.00021917,2]
[362228449,1748113835479,-450.0,0.00021917,2]
[362228450,1748113835489,-450.0,0.00021917,2]
[362228451,1748113835498,-450.0,0.00021917,2]
[362228452,1748113835508,-609.96,0.00021917,2]
[362228453,1748113835518,-450.0,0.00021917,2]
[362228454,1748113835528,-450.0,0.00021917,2]
[362228455,1748113835537,-430.0,0.00021917,2]
[362228456,1748113835547,-400.0,0.00021917,2]
[362228457,1748113835556,-542.88019991,0.00021917,2]
[362228458,1748113835567,-450.0,0.00021917,2]
[362228459,1748113835577,-438.89,0.00021917,2]
[362228460,1748113835586,-430.0,0.00021917,2]
[362228461,1748113835595,-450.0,0.00021917,2]
[362228462,1748113835605,-902.63,0.00021917,2]
[362228463,1748113835615,-500.0,0.00021917,2]
[362228464,1748113835624,-350.68537429,0.00021917,2]
[362228465,1748113835634,-430.0,0.00021917,2]
[362228466,1748113835644,-937.52,0.00021917,2]
[362228467,1748113835654,-250.0,0.00021917,2]
[362228468,1748113835664,-450.0,0.00021917,2]
[362228469,1748113835674,-2450.26,0.00021917,2]
[362228470,1748113835683,-450.0,0.00021917,2]
[362228471,1748113835693,-450.0,0.00021917,2]
[362228472,1748113835703,-1723.13,0.00021917,2]
[362228473,1748113835713,-552.01378937,0.00021917,2]
[362228474,1748113835724,-450.0,0.00021917,2]
[362228475,1748113835733,-430.0,0.00021917,2]
[362228476,1748113835743,-450.0,0.00021917,2]
[362228477,1748113835753,-450.0,0.00021917,2]
[362228478,1748113835763,-303.03216299,0.00021917,2]
[362228479,1748113835772,-500.0,0.00021917,2]
[362228480,1748113835782,-450.0,0.00021917,2]
[362228481,1748113835791,-450.0,0.00021917,2]
[362228482,1748113835800,-350.0,0.00021917,2]
[362228483,1748113835811,-538.32,0.00021917,2]
[362228484,1748113835820,-430.0,0.00021917,2]
[362228485,1748113835830,-450.0,0.00021917,2]
[362228486,1748113835840,-430.0,0.00021917,2]
[362228487,1748113835849,-430.0,0.00021917,2]
[362228488,1748113835859,-450.0,0.00021917,2]
[362228489,1748113835869,-351.05044979,0.00021917,2]
[362228490,1748113835879,-450.0,0.00021917,2]
[362228491,1748113835890,-430.0,0.00021917,2]
[362228492,1748113835900,-154.30874281,0.00021917,2]
[362228493,1748113835912,-549.89,0.00021917,2]
[362228494,1748113835922,-5005.47,0.00021917,2]
[362228495,1748113835931,-430.0,0.00021917,2]
[362228496,1748113835941,-450.0,0.00021917,2]
[362228497,1748113835951,-359.40216688,0.00021917,2]
[362228498,1748113835961,-430.0,0.00021917,2]
[362228499,1748113835971,-450.0,0.00021917,2]
[362228500,1748113835983,-450.0,0.00021917,2]
[362228501,1748113835992,-931.12,0.00021917,2]
[362228502,1748113836002,-430.0,0.00021917,2]
[362228503,1748113836011,-1742.65,0.00021917,2]
[362228504,1748113836020,-450.0,0.00021917,2]
[362228505,1748113836030,-320.98921431,0.00021917,2]
[362228506,1748113836039,-200.0,0.00021917,2]
[362228507,1748113836048,-430.0,0.00021917,2]
[362228508,1748113836057,-450.0,0.00021917,2]
[362228509,1748113836067,-430.0,0.00021917,2]
[362228510,1748113836077,-1787.88,0.00021917,2]
[362228511,1748113836086,-1730.66,0.00021917,2]
[362228512,1748113836096,-404.45881087,0.00021917,2]
[362228513,1748113836105,-430.0,0.00021917,2]
[362228514,1748113836116,-450.0,0.00021917,2]
[362228515,1748113836126,-450.0,0.00021917,2]
[362228516,1748113836136,-704.42,0.00021917,2]
[362228517,1748113836147,-572.90266895,0.00021917,2]
[362228518,1748113836156,-300.0,0.00021917,2]